Cogmind - Beta 15 @@@ ROGUE MODE // 2025.06.15 @ 11:52:24 Player: BlobtheGreat Result: Destroyed by P-70 Sage with High-powered Shock Rifle Performance ------------- Evolutions (5) 2500 Regions Visited (14) 2800 Robots Destroyed (150) 750 Value Destroyed (5678) 5678 Prototype IDs (28) 560 Alien Tech Used (0) 0 Bonus (3572) 3572 TOTAL SCORE: 15860 Bonus ------- High Alert Combat Kills 310 Follower Combat Kills 662 Entered Garrisons 800 Used RIF Installer 1500 Aligned with FarCom 300 Cogmind --------- Core Integrity 0/1000 Matter 268/300 Energy 315/315 System Corruption 6% Temperature Cool (0) Movement Hovering (101) Ox1 Location -5/Factory Parts ------- > --- POWER (1) -------- Neutrino Core > --- PROPULSION (5) --- Gyrokinetic Inverter Cooled Gravmag System > --- UTILITY (8) ------ Medium Storage Unit Relay Coupler [NC] (9) Relay Coupler [Swarmer] (17) Relay Coupler [Grunt] (1) Relay Coupler [Sentry] (11) Relay Coupler [Specialist] (24) Relay Coupler [Hunter] (18) Relay Coupler [Heavy] (17) > --- WEAPON (3) ------- Linear Accelerator Katana > --- INVENTORY (10) --- Light Fission Core Improved Sensor Array Improved Signal Interpreter Advanced ECM Suite Improved Medium Armor Plating Layered Light Armor Plating Relay Coupler [Demolisher] (24) Advanced Trap Extractor (0/8) Trap Reconfigurator Improved Remote Datajack Peak State ------------ > --- POWER ------------ Neutrino Core > --- PROPULSION ------- Carbon-fiber Leg Improved Gravmag System Improved Gravmag System Gyrokinetic Inverter Cooled Gravmag System > --- UTILITY ---------- Relay Coupler [NC] Relay Coupler [Swarmer] Relay Coupler [Grunt] Relay Coupler [Sentry] Relay Coupler [Specialist] Relay Coupler [Hunter] Relay Coupler [Heavy] Trap Reconfigurator > --- WEAPON ----------- Linear Accelerator Linear Accelerator Katana > --- INVENTORY -------- Light Fission Core Improved Medium Armor Plating Relay Coupler [Demolisher] Improved Remote Datajack [Rating: 89] Favorites ----------- Power Ion Engine Engine Ion Engine Power Core Nuclear Core Propulsion Improved Gravmag System Treads Light Treads Leg Aluminum Leg Wheel Armored Wheel Hover Unit Improved Gravmag System Utility Large Storage Unit Device Trap Reconfigurator Storage Large Storage Unit Processor System Guard Hackware Hacking Suite Protection Medium Armor Plating Weapon Gauss Cannon Energy Gun Medium Laser Ballistic Gun Assault Rifle Ballistic Cannon Gauss Cannon Launcher Mini Grenade Launcher Special Weapon Improved Remote Datajack Slashing Weapon Katana Piercing Weapon Lance Special Melee Weapon Improved Datajack Build | -11 -10 -10 -10 -9 -8 -8 -7 -7 -6 -6 -6 -5 -5 -5 ------- Run | Yrd Mat Min Exi Min Mat Gar Fac Gar Fac Gar Fac Fac Gar Fac Slots Evolved 10 | . . . . . 4 . 2 . 2 . . 2 . . Power . | . . . . . . . . . . . . . . . Propulsion 3 | . . . . . 2 . . . 1 . . . . . Utility 6 | . . . . . 2 . 1 . 1 . . 2 . . Weapon 1 | . . . . . . . 1 . . . . . . . Parts Attached 131 | 7 10 3 . 2 24 5 3 13 14 8 2 12 24 4 Power 10 | 1 1 . . . 2 . . 2 . 1 . 1 2 . Engine 5 | 1 1 . . . . . . 2 . 1 . . . . Core 5 | . . . . . 2 . . . . . . 1 2 . Reactor . | . . . . . . . . . . . . . . . Propulsion 37 | 2 3 2 . . 8 1 1 3 7 2 1 1 5 1 Treads 5 | 2 . . . . 1 . . 1 . . . . 1 . Leg 17 | . 3 2 . . 7 1 1 2 . . . . 1 . Wheel 2 | . . . . . . . . . 2 . . . . . Hover 13 | . . . . . . . . . 5 2 1 1 3 1 Flight . | . . . . . . . . . . . . . . . Utility 41 | 2 4 1 . . 7 2 1 2 4 2 1 5 8 2 Device 9 | 1 1 1 . . 2 . . . 2 . 1 1 . . Storage 4 | 1 2 . . . . . . . . . . . . 1 Processor 1 | . . . . . . . . 1 . . . . . . Hackware 13 | . . . . . . . 1 . 2 . . 2 8 . Protection 14 | . 1 . . . 5 2 . 1 . 2 . 2 . 1 Artifact . | . . . . . . . . . . . . . . . Weapon 43 | 2 2 . . 2 7 2 1 6 3 3 . 5 9 1 Energy Gun 8 | . 1 . . . 3 . . 3 . . . . 1 . Energy Cannon . | . . . . . . . . . . . . . . . Ballistic Gun 14 | 2 . . . 1 . . 1 3 . 2 . 2 3 . Ballistic Cannon 7 | . . . . . 2 . . . 1 . . . 4 . Launcher 4 | . 1 . . 1 1 . . . . . . 1 . . Special Weapon 3 | . . . . . . . . . . 1 . 1 1 . Impact Weapon . | . . . . . . . . . . . . . . . Slashing Weapon 3 | . . . . . 1 1 . . . . . . . 1 Piercing Weapon 3 | . . . . . . 1 . . 1 . . 1 . . Special Melee Weapon 1 | . . . . . . . . . 1 . . . . . Unidentified Prototypes 4 | . . 1 . . 1 . . . . . . 2 . . Parts Lost 64 | . . . . . 7 . . 20 . 6 . 3 24 4 Power 7 | . . . . . 1 . . 2 . 1 . 1 2 . Propulsion 20 | . . . . . 4 . . 5 . 2 . . 6 3 Utility 14 | . . . . . 1 . . 4 . 1 . 1 7 . Weapon 23 | . . . . . 1 . . 9 . 2 . 1 9 1 Highest Loss Streak 20 | . . . . . 7 . . 11 . 5 . 3 20 2 To Critical Strikes . | . . . . . . . . . . . . . . . Average Backups 13 | 3 12 14 14 15 13 15 13 12 14 14 15 14 7 5 Power 1 | . 1 2 2 2 1 1 1 . . . 1 . . . Propulsion 3 | 2 5 4 3 3 2 4 4 4 3 3 1 3 1 . Utility 4 | . 3 5 6 6 4 4 4 5 7 6 7 5 2 2 Weapon 3 | . 2 3 3 3 5 4 3 1 2 3 3 3 2 1 Tool/Special . | . . . . . . . . . . . . . . . Unused Backups 41 | 1 5 2 . 2 10 . . . 4 4 . 3 2 8 Power 6 | . 1 . . . 1 . . . . . . 2 1 1 Propulsion 12 | 1 3 1 . . 3 . . . 4 . . . . . Utility 12 | . 1 . . . 2 . . . . 2 . . 1 6 Weapon 11 | . . 1 . 2 4 . . . . 2 . 1 . 1 Tool/Special . | . . . . . . . . . . . . . . . Average Slot Usage (%) 93 | . 100 100 100 100 93 99 98 71 79 98 100 97 81 91 Engine 6 | . 14 14 14 14 . . . 3 6 5 6 3 . . Core 2 | . . . . . 8 9 7 2 . . . 1 2 5 Leg 18 | . 23 28 28 28 30 35 30 20 6 . . . 2 3 Hover 8 | . . . . . . . . . 15 32 33 29 18 19 Device 8 | . 9 14 14 1 12 10 15 2 4 9 10 8 2 3 Storage 8 | . 14 14 14 14 9 9 7 7 6 6 6 5 1 1 Hackware 9 | . . . . . . . 6 7 10 20 20 22 28 41 Protection 6 | . 4 . . 12 13 16 7 5 . 2 2 6 5 . Energy Gun 4 | . 4 14 14 14 5 . . . . . . . . . Ballistic Gun 8 | . 23 7 14 8 . . 6 7 13 11 13 10 5 . Ballistic Cannon 3 | . . . . . 7 15 10 4 . 4 . . 2 4 Launcher 1 | . . 6 . 5 3 . . . . . . . . . Piercing Weapon 1 | . . . . . . . 4 . 2 1 5 4 3 . Peak Build Rating 89 | 8 8 15 10 11 42 47 55 54 63 63 69 85 83 89 Average Rating 38 | 5 7 8 9 10 33 38 53 34 44 60 65 76 67 77 On Entrance 36 | . 8 8 9 10 11 36 47 55 25 61 62 69 74 76 Naked Turns . | . . . . . . . . . . . . . . . Heaviest Build 61 | 15 32 31 30 33 57 57 51 57 50 50 50 61 50 50 Greatest Support 70 | 40 40 20 20 20 64 65 70 70 50 50 50 51 51 42 Greatest Overweight (x) 10 | . 1 1 1 1 3 1 . 7 3 10 1 1 7 1 Average Overweight (x) . | . . 1 1 1 . . . . . . . . . . Largest Inventory Capacity 15 | 8 15 15 15 15 15 15 15 15 15 15 15 15 15 10 Average Capacity 13 | 7 13 15 15 15 15 15 15 15 15 15 15 15 8 6 Most Carried 15 | 8 15 15 15 15 15 15 15 15 15 15 15 15 15 10 Average Carried 13 | 4 13 14 14 14 13 14 13 12 14 14 14 14 7 5 Final Capacity 15 | 8 15 15 15 15 15 15 15 15 15 15 15 15 5 10 Final Carried 15 | 8 15 15 15 15 15 15 15 13 15 15 15 15 5 10 Class Distribution -------------------- 46% | Mutant 27% | Bothacker-Mutant 11% | Scavenger-Mutant 7% | Bothacker-Skirmisher 3% | Commander-Mutant Dominant Class ---------------- Mutant | -10/Materials Mutant | -10/Mines Scavenger-Mutant | -10/Exiles Mutant | -9/Mines Mutant | -8/Materials Mutant | -8/Garrison Mutant | -7/Factory Mutant | -7/Garrison Bothacker-Mutant | -6/Factory Bothacker-Skirmisher | -6/Garrison Bothacker-Mutant | -6/Factory Bothacker-Mutant | -5/Factory Bothacker-Mutant | -5/Garrison Bothacker-Mutant | -5/Factory Resources | -11 -10 -10 -10 -9 -8 -8 -7 -7 -6 -6 -6 -5 -5 -5 ----------- Run | Yrd Mat Min Exi Min Mat Gar Fac Gar Fac Gar Fac Fac Gar Fac Matter Collected 4970 | 306 300 128 . 148 558 500 . 406 288 581 305 399 655 396 Remotely . | . . . . . . . . . . . . . . . Salvage Created 4964 | 113 538 39 . 137 572 403 . 435 287 499 305 1006 480 150 Parts 292 | 7 38 8 . 18 46 23 . 23 7 35 16 46 17 8 Haulers Intercepted 10 | . 2 . . . 5 . . . . . 1 1 . 1 Recyclers Shooed 4 | . 1 . . . 3 . . . . . . . . . Parts Field Recycled . | . . . . . . . . . . . . . . . Retrieved Matter . | . . . . . . . . . . . . . . . Parts Self-Destructed . | . . . . . . . . . . . . . . . Prevented . | . . . . . . . . . . . . . . . Kills | -11 -10 -10 -10 -9 -8 -8 -7 -7 -6 -6 -6 -5 -5 -5 ------- Run | Yrd Mat Min Exi Min Mat Gar Fac Gar Fac Gar Fac Fac Gar Fac Combat Hostiles Destroyed 113 | . 12 6 . 7 14 13 . 14 . 16 3 12 14 2 Melee 9 | . . . . . . . . 3 . . . . 5 1 Guns 39 | . 10 1 . 2 2 . . 1 . 10 1 4 8 . Cannons 31 | . . . . . 2 13 . 6 . 6 2 . 1 1 AOE 34 | . 2 5 . 5 10 . . 4 . . . 8 . . Classes Destroyed 15 | 2 5 . . . 2 2 . . . 2 . 1 1 . Worker 2 | . . . . . . . . . . . . 2 . . Builder 4 | . . . . . 2 . . . . . 1 1 . . Tunneler 5 | 2 . . . 2 1 . . . . . . . . . Hauler 10 | . 2 . . . 5 . . . . . 1 1 . 1 Recycler 8 | 1 . . . . . . . . 2 . 1 4 . . Operator 3 | . 1 . . . 1 . . . . . . 1 . . Watcher 4 | . 2 . . . 2 . . . . . . . . . Swarmer 48 | . 3 6 . 5 9 2 . 4 . 4 3 4 7 1 Cutter 3 | . . . . . . . . . . 3 . . . . Grunt 39 | . 9 . . 2 2 8 . 8 . . . 5 4 1 Brawler 1 | . . . . . . 1 . . . . . . . . Duelist 3 | . . . . . . 2 . 1 . . . . . . Sentry 14 | . . . . . 3 1 . 1 . 7 . . 2 . Programmer 5 | . . . . . . . . . . 2 . 3 . . Behemoth 1 | . . . . . . . . . . . . . 1 . Best Kill Streak 9 | 2 5 3 . 5 6 3 . 4 2 6 5 9 6 1 Combat Bots Only 8 | . 5 3 . 4 5 3 . 4 . 6 3 8 6 1 Max Kills in Single Turn 5 | 1 2 2 . 3 3 1 . 2 1 1 2 5 1 1 Gunslinging . | . . . . . . . . . . . . . . . Exploded 4 | . 2 2 . 2 3 . . 2 . . . 4 . . Melee 1 | . . . . . . . . 1 . . . . 1 1 Uniques/NPCs Destroyed . | . . . . . . . . . . . . . . . Combat | -11 -10 -10 -10 -9 -8 -8 -7 -7 -6 -6 -6 -5 -5 -5 -------- Run | Yrd Mat Min Exi Min Mat Gar Fac Gar Fac Gar Fac Fac Gar Fac Hostile Shots Fired 1044 | . 50 10 . 15 76 42 . 307 . 214 16 25 241 48 Missed 345 | . 8 3 . 2 28 14 . 98 . 88 7 8 77 12 Hits 699 | . 42 7 . 13 48 28 . 209 . 126 9 17 164 36 Melee 14 | . . . . . . 4 . 5 . 5 . . . . Projectile 685 | . 42 7 . 13 48 24 . 204 . 121 9 17 164 36 AOE 20 | . . . . . . . . 20 . . . . . . Critical Strikes 15 | . . . . . 1 2 . 2 . 2 . 1 6 1 Actively Blocked 1 | . . . . . . . . . . . . . 1 . Damage Taken 10590 | . 462 102 . 143 736 638 . 2989 29 1126 126 299 3219 721 Core 2001 | . 131 . . 32 71 7 . 574 29 138 12 . 896 111 Absorbed by Shields 37 | . . . . . . . . . . . . 37 . . Redirected to Shielding 54 | . . . . . . . . . . . . . 54 . Regen/Repaired (Parts) 33 | . . . . . . . . . . . . 33 . . Core Remaining (%) 63 | 100 . . . 34 . 85 . 18 . . 78 . . . Volleys Fired 335 | 6 38 7 . 20 69 35 . 38 1 39 5 16 36 25 Largest 3 | 2 2 1 . 2 2 2 . 3 2 3 3 3 3 2 Hottest 131 | 40 70 50 . 73 108 80 . 105 46 100 100 86 131 108 Shots Fired 609 | 12 76 7 . 30 96 65 . 66 2 92 15 33 85 30 Gun 386 | 12 75 2 . 25 69 . . 33 2 61 10 26 71 . Cannon 172 | . . . . . 16 65 . 25 . 29 5 . 12 20 Launcher 35 | . 1 5 . 5 11 . . 8 . . . 4 1 . Special 16 | . . . . . . . . . . 2 . 3 1 10 Kinetic 466 | 12 62 . . 14 42 65 . 46 2 90 15 26 72 20 Thermal 90 | . 13 2 . 11 41 . . 12 . . . . 11 . Explosive 35 | . 1 5 . 5 11 . . 8 . . . 4 1 . Electromagnetic 2 | . . . . . 2 . . . . . . . . . Robot Hit Streak 12 | 10 12 3 . 7 6 6 . 8 2 10 3 9 12 12 Robot Miss Streak 21 | . 5 2 . 4 2 3 . 3 . 17 21 10 13 5 Penetration Max 1 | . . . . . . . . 1 . . . . . . Secondary Targets 2 | . 1 . . . . . . . . . . . 1 . Max Gunslinging Chain 1 | . 1 . . . . . . . . . . . 1 . Shots Hit Robots 438 | 10 48 4 . 16 56 34 . 48 10 68 12 34 77 21 Core Hits 319 | 4 26 6 . 11 31 21 . 28 3 75 12 40 55 7 Critical Kills . | . . . . . . . . . . . . . . . Critical Parts Destroyed . | . . . . . . . . . . . . . . . Critical Strikes 25 | . 1 . . 1 6 6 . 6 . . . 1 3 1 Burn 6 | . 1 . . 1 4 . . . . . . . . . Blast 13 | . . . . . 2 6 . 4 . . . . 1 . Sever 1 | . . . . . . . . . . . . . . 1 Impale 5 | . . . . . . . . 2 . . . 1 2 . Melee Attacks 111 | . . . . . . 4 12 13 8 15 3 17 30 9 Impact . | . . . . . . . . . . . . . . . Slashing 9 | . . . . . . . . . . . . . . 9 Piercing 99 | . . . . . . 4 12 13 5 15 3 17 30 . Sneak Attacks 15 | . . . . . . . . . 7 . 2 6 . . Combat Hostiles . | . . . . . . . . . . . . . . . Follow-up Attacks . | . . . . . . . . . . . . . . . Damage Inflicted 13620 | 136 739 364 . 432 1967 1574 . 1449 311 1353 253 2253 2048 741 Guns 4366 | 136 659 13 . 212 744 . . 355 26 745 58 407 1011 . Cannons 3447 | . . . . . 257 1042 . 471 . 608 43 . 482 544 Explosions 3807 | . 80 351 . 220 966 532 . 264 . . . 1259 135 . Melee 1991 | . . . . . . . . 350 285 . 152 587 420 197 Ramming 9 | . . . . . . . . 9 . . . . . . Kinetic 6665 | 136 572 . . 97 482 1042 . 665 26 1353 101 407 1240 544 Thermal 1454 | . 87 13 . 115 556 . . 161 . . . 269 253 . Explosive 3468 | . 80 351 . 220 896 532 . 264 . . . 990 135 . Electromagnetic 33 | . . . . . 33 . . . . . . . . . Impact . | . . . . . . . . . . . . . . . Slashing 197 | . . . . . . . . . . . . . . 197 Piercing 1794 | . . . . . . . . 350 285 . 152 587 420 . Highest Corruption 5 | . 1 1 1 1 . . . . 1 1 1 4 4 5 Average Corruption 1 | . 1 1 1 1 . . . . 1 1 1 3 4 4 Corruption Purged . | . . . . . . . . . . . . . . . Corruption Blocked . | . . . . . . . . . . . . . . . Effects 84 | . 12 6 2 8 . . . . . 10 2 2 28 14 Message Errors 30 | . 4 3 2 4 . . . . . 4 1 . 7 5 Matter Fused 19 | . 1 1 . 1 . . . . . 2 1 . 9 4 Heat Flow Errors 9 | . 2 . . 2 . . . . . . . 1 3 1 Energy Discharges 6 | . 1 1 . . . . . . . 2 . . 1 1 Parts Rejected 2 | . 1 . . . . . . . . . . . 1 . Parts Fused 1 | . . . . . . . . . . . . . 1 . Data Loss (minor) 10 | . 1 1 . . . . . . . 1 . . 4 3 Data Loss (major) 3 | . 1 . . . . . . . . 1 . . 1 . Misfires 3 | . 1 . . 1 . . . . . . . . 1 . Alerts 1 | . . . . . . . . . . . . 1 . . Overload Shots . | . . . . . . . . . . . . . . . Overflow Damage 448 | . . 35 . . 120 34 . 8 33 . . 208 . 10 Projectiles 37 | . . . . . 17 10 . . . . . . . 10 Explosions 265 | . . 35 . . 103 24 . 8 . . . 95 . . Melee 146 | . . . . . . . . . 33 . . 113 . . Knockbacks 23 | . . . . . . 12 . 6 . 4 . . . 1 Impact 1 | . . . . . . . . 1 . . . . . . Kinetic 21 | . . . . . . 11 . 5 . 4 . . . 1 Secondary 1 | . . . . . . 1 . . . . . . . . Self-Inflicted Damage 309 | . . 49 . . 40 155 . 65 . . . . . . Shots 7 | . . 2 . . 2 1 . 2 . . . . . . Rammed . | . . . . . . . . . . . . . . . Targets Rammed 2 | . . . . . . . . 2 . . . . . . Kicked 2 | . . . . . . . . 2 . . . . . . Crushed . | . . . . . . . . . . . . . . . Highest Temperature 340 | . 224 10 . 237 244 261 . 340 . 4 . 137 171 274 Average Temperature 83 | . 102 7 . 105 66 88 . 117 . 2 . 25 51 96 Received Heat Transfer 2680 | . 204 . . 78 315 198 . 693 . 270 . 45 598 279 Effects 2 | . . . . . . . . . . . . . . 2 Interference 2 | . . . . . . . . . . . . . . 2 Siege Activations . | . . . . . . . . . . . . . . . Martial Activations . | . . . . . . . . . . . . . . . Shielding Activations . | . . . . . . . . . . . . . . . Robots Disrupted . | . . . . . . . . . . . . . . . Combat Hostiles . | . . . . . . . . . . . . . . . Robots Corrupted . | . . . . . . . . . . . . . . . Combat Hostiles . | . . . . . . . . . . . . . . . Parts Fried 1 | . . . . . 1 . . . . . . . . . Impact Corruptions 1 | . . . . . . 1 . . . . . . . . Robots Melted . | . . . . . . . . . . . . . . . Combat Hostiles . | . . . . . . . . . . . . . . . Parts Melted 3 | . . . . 1 2 . . . . . . . . . Heat Transferred 3402 | . 333 37 . 407 1530 . . 370 . . . 150 575 . Parts Sabotaged . | . . . . . . . . . . . . . . . Parts Stolen . | . . . . . . . . . . . . . . . Parts Stripped . | . . . . . . . . . . . . . . . Power Chain Reactions . | . . . . . . . . . . . . . . . Alert | -11 -10 -10 -10 -9 -8 -8 -7 -7 -6 -6 -6 -5 -5 -5 ------- Run | Yrd Mat Min Exi Min Mat Gar Fac Gar Fac Gar Fac Fac Gar Fac Maximum Alert Level 3 | . . . . . . 3 1 2 1 2 1 2 2 1 Low Security (%) 62 | 100 100 100 . 100 100 34 . 12 82 54 . 79 . 1 Level 1 20 | . . . . . . 23 100 41 17 32 100 3 8 98 Level 2 15 | . . . . . . 26 . 46 . 12 . 17 91 . Level 3 1 | . . . . . . 14 . . . . . . . . Level 4 . | . . . . . . . . . . . . . . . Level 5 . | . . . . . . . . . . . . . . . High Security . | . . . . . . . . . . . . . . . Max Security . | . . . . . . . . . . . . . . . Peak Influence 736 | 5 119 102 . 136 181 736 386 476 233 531 328 502 683 358 Initial 386 | . . 6 . . 45 72 386 136 233 63 278 119 336 358 Average 191 | 1 43 15 . 47 62 369 294 372 143 223 284 133 581 265 Influence Increases 5236 | 15 353 186 . 440 595 744 7 510 92 548 116 792 607 231 Destroy 0b10 Robot/C 2760 | . 240 120 . 300 280 400 . 280 40 340 60 260 280 160 Destroy 0b10 Robot/NC 195 | 15 25 . . 10 60 . . . 10 . 15 50 . 10 Destroy Leader 440 | . 68 20 . 50 84 30 . 20 20 30 12 64 30 12 Allied During Kill 145 | . . . . 46 . 69 . . 2 1 . 5 . 22 Trap Triggered on 0b10 60 | . . . . . 10 . . 10 10 . . 30 . . Successful Hack 86 | . 5 . . . 4 . . . 10 12 13 30 12 . Disable Machine 270 | . 15 15 . . 45 15 . . . . . 165 . 15 Anti-Garrison Action 300 | . . . . . . 50 . 50 . 100 . . 100 . Destroy Structure 545 | . . 31 . 34 97 60 7 45 . 65 1 128 65 12 Partial Spotted 90 | . . . . . . 15 . . . . 15 45 15 . Lose Combat Pursuer 345 | . . . . . 15 105 . 105 . . . 15 105 . Influence Decreases 5059 | 15 336 203 . 322 601 120 548 259 447 108 403 555 405 737 Entered New Map 1622 | . . 11 . . 73 40 350 59 213 28 253 125 145 325 Time Decay 2497 | 15 336 192 . 282 438 . 198 . 214 . 150 370 . 302 Lost Part 630 | . . . . . 60 . . 200 . 60 . 30 240 40 Lost Ally 310 | . . . . 40 30 80 . . 20 20 . 30 20 70 Squads Dispatched 20 | . 5 . . 2 3 . . . 1 . 1 4 . 4 Investigation 5 | . 3 . . . . . . . . . . 1 . 1 Extermination 5 | . . . . . . . . . 1 . 1 2 . 1 Reinforcement 6 | . 2 . . 1 . . . . . . . 1 . 2 Assault 1 | . . . . 1 . . . . . . . . . . Garrison 3 | . . . . . 3 . . . . . . . . . Intercept . | . . . . . . . . . . . . . . . Searches Triggered . | . . . . . . . . . . . . . . . Construction Impeded 2 | . . . . 1 . . . . . . . 1 . . Haulers Reinforced 1 | . . . . . . . . . . . . . . 1 Active Scanning Responses . | . . . . . . . . . . . . . . . Cargo Convoy Interrupts . | . . . . . . . . . . . . . . . Stealth | -11 -10 -10 -10 -9 -8 -8 -7 -7 -6 -6 -6 -5 -5 -5 --------- Run | Yrd Mat Min Exi Min Mat Gar Fac Gar Fac Gar Fac Fac Gar Fac Distress Signals 6 | . 1 . . 1 3 . . . . . . 1 . . Communications Jammed . | . . . . . . . . . . . . . . . Distress Signals . | . . . . . . . . . . . . . . . Times Spotted 173 | . 18 6 . 11 19 23 . 21 1 19 3 12 24 16 Peak Tracking Total 9 | . 5 3 . 4 4 8 1 9 1 5 3 4 7 4 Tactical Retreats 10 | . . . . . 1 2 . 3 . . . 1 3 . Traps | -11 -10 -10 -10 -9 -8 -8 -7 -7 -6 -6 -6 -5 -5 -5 ------- Run | Yrd Mat Min Exi Min Mat Gar Fac Gar Fac Gar Fac Fac Gar Fac Traps Triggered 21 | . 3 . . . . 3 . . 1 4 1 1 8 . Indirectly . | . . . . . . . . . . . . . . . Trap Hack Attempts . | . . . . . . . . . . . . . . . Triggered . | . . . . . . . . . . . . . . . Disarmed . | . . . . . . . . . . . . . . . Reprogrammed 4 | . 4 . . . . . . . . . . . . . Reused 6 | . . . . . 1 . . 1 1 . . 3 . . Traps Reconfigurated 75 | . . . . . 13 10 . 10 4 . 6 24 7 1 Traps Extracted . | . . . . . . . . . . . . . . . Installed . | . . . . . . . . . . . . . . . Triggered 6 | . . . . . 1 . . 1 1 . . 3 . . Most Traps Carried 1 | . . 1 1 . . . . . . . . . . . Machines | -11 -10 -10 -10 -9 -8 -8 -7 -7 -6 -6 -6 -5 -5 -5 ---------- Run | Yrd Mat Min Exi Min Mat Gar Fac Gar Fac Gar Fac Fac Gar Fac Machines Disabled 25 | . 1 1 . . 3 3 . 1 . 2 . 11 2 1 Max in Single Turn 7 | . 1 1 . . 2 2 . 1 . 1 . 7 1 1 Garrison Relay 5 | . . . . . . . . 1 . 2 . . 2 . Phase Generator 2 | . . . . . . 1 . 1 . . . . . . Machines Repaired . | . . . . . . . . . . . . . . . Machines Dismantled . | . . . . . . . . . . . . . . . Machines Sabotaged . | . . . . . . . . . . . . . . . Overloaded Fab Kills . | . . . . . . . . . . . . . . . Hacking | -11 -10 -10 -10 -9 -8 -8 -7 -7 -6 -6 -6 -5 -5 -5 --------- Run | Yrd Mat Min Exi Min Mat Gar Fac Gar Fac Gar Fac Fac Gar Fac Machines Accessed 37 | . 4 1 1 . 7 1 2 . 2 2 5 7 2 3 Terminals 18 | . 4 . . . 3 1 1 . . 2 2 1 2 2 Fabricators 3 | . . . . . . . . . . . . 2 . 1 Repair Stations 4 | . . . . . 1 . . . 1 . 1 1 . . Recycling Units 3 | . . . . . 1 . . . . . 1 1 . . Scanalyzers 3 | . . . . . 1 . . . . . 1 1 . . Garrison Access 4 | . . . . . 1 . 1 . 1 . . 1 . . Total Hacks 78 | . 12 1 1 . 19 1 2 . 4 3 14 15 2 4 Successful 41 | . 2 1 1 . 12 1 1 . 3 1 7 9 2 1 Failed 37 | . 10 . . . 7 . 1 . 1 2 7 6 . 3 Catastrophic 9 | . 2 . . . 3 . . . . 1 . 1 . 2 Database Lockouts . | . . . . . . . . . . . . . . . Manual 14 | . 5 . 1 . 2 . . . . . 1 3 . 2 Terminals 32 | . 12 . . . 4 1 1 . . 3 4 3 2 2 Fabricators 6 | . . . . . . . . . . . . 4 . 2 Repair Stations 10 | . . . . . 2 . . . 2 . 3 3 . . Recycling Units 5 | . . . . . 1 . . . . . 3 1 . . Scanalyzers 18 | . . . . . 11 . . . . . 4 3 . . Garrison Access 5 | . . . . . 1 . 1 . 2 . . 1 . . Terminal Hacks 9 | . 2 1 1 . . 1 . . . 1 1 . 2 . Robot Analysis 1 | . 1 . . . . . . . . . . . . . Open Door 1 | . . 1 . . . . . . . . . . . . Emergency Access Points 2 | . . . . . . . . . . 1 . . 1 . Locate Traps 1 | . . . . . . . . . . . 1 . . . Reprogram Traps 1 | . 1 . . . . . . . . . . . . . Garrison Registry 1 | . . . . . . 1 . . . . . . . . Patrol Navigation 1 | . . . . . . . . . . . . . 1 . Proto ID Catalog 1 | . . . 1 . . . . . . . . . . . Fabricator Hacks 3 | . . . . . . . . . . . . 2 . 1 Load Schematic 2 | . . . . . . . . . . . . 1 . 1 Build 1 | . . . . . . . . . . . . 1 . . Repair Station Hacks 6 | . . . . . 2 . . . 1 . 1 2 . . Scan Component 4 | . . . . . 1 . . . 1 . 1 1 . . Repair 2 | . . . . . 1 . . . . . . 1 . . Recycling Unit Hacks 4 | . . . . . 1 . . . . . 2 1 . . Report Inventory 3 | . . . . . 1 . . . . . 1 1 . . Retrieve Components 1 | . . . . . . . . . . . 1 . . . Scanalyzer 13 | . . . . . 8 . . . . . 3 2 . . Insert Component 6 | . . . . . 4 . . . . . 1 1 . . Analyze 7 | . . . . . 4 . . . . . 2 1 . . Garrison Access Hacks 5 | . . . . . 1 . 1 . 2 . . 1 . . Unlock Access 4 | . . . . . 1 . 1 . 1 . . 1 . . Coupler Status 1 | . . . . . . . . . 1 . . . . . Unauthorized Hacks 1 | . . . . . . . . . . . . 1 . . Terminals 1 | . . . . . . . . . . . . 1 . . Assimilate 1 | . . . . . . . . . . . . 1 . . Fabricators . | . . . . . . . . . . . . . . . Repair Stations . | . . . . . . . . . . . . . . . Recycling Units . | . . . . . . . . . . . . . . . Scanalyzers . | . . . . . . . . . . . . . . . Garrison Access . | . . . . . . . . . . . . . . . Data Cores Recovered 3 | . . . . . 2 . . . . . . 1 . . Used . | . . . . . . . . . . . . . . . Hacking Detections 27 | . 4 . . . 5 . 1 . 1 2 4 5 2 3 Full Trace Events 2 | . 1 . . . . . . . . . . 1 . . Feedback Events . | . . . . . . . . . . . . . . . Feedback Blocked . | . . . . . . . . . . . . . . . Robot Schematics Acquired . | . . . . . . . . . . . . . . . Robots Built . | . . . . . . . . . . . . . . . Authchips . | . . . . . . . . . . . . . . . Time . | . . . . . . . . . . . . . . . Total Robot Build Rating . | . . . . . . . . . . . . . . . Part Schematics Acquired 6 | . . . . . 4 . . . . . 1 1 . . Parts Built 2 | . . . . . . . . . . . . 2 . . Authchips . | . . . . . . . . . . . . . . . Time 47 | . . . . . . . . . . . . 47 . . Total Part Build Rating 10 | . . . . . . . . . . . . 10 . . Parts Repaired 2 | . . . . . 1 . . . . . . 1 . . Time 126 | . . . . . 76 . . . . . . 50 . . Parts Recycled . | . . . . . . . . . . . . . . . Recycled Matter . | . . . . . . . . . . . . . . . Retrieved Matter . | . . . . . . . . . . . . . . . Retrieved Components 2 | . . . . . . . . . . . 2 . . . Parts Scanalyzed 6 | . . . . . 4 . . . . . 1 1 . . Part Schematics Acquired 6 | . . . . . 4 . . . . . 1 1 . . Parts Damaged 1 | . . . . . 1 . . . . . . . . . Bothacking | -11 -10 -10 -10 -9 -8 -8 -7 -7 -6 -6 -6 -5 -5 -5 ------------ Run | Yrd Mat Min Exi Min Mat Gar Fac Gar Fac Gar Fac Fac Gar Fac Used RIF Installer 3 | . . . . . . . . 1 . 1 . . 1 . Robot Detection 1 | . . . . . . . . . . 1 . . . . Watcher Feeds 1 | . . . . . . . . . . . . . 1 . Robots Hacked 11 | . . . . . . . . . 1 . . 3 1 6 Non-combat 4 | . . . . . . . . . 1 . . 1 . 2 Combat 7 | . . . . . . . . . . . . 2 1 4 Robot Hacks Applied 11 | . . . . . . . . . 1 . . 3 1 6 parse_system 1 | . . . . . . . . . . . . . . 1 no_distress 1 | . . . . . . . . . . . . 1 . . drop_inventory 1 | . . . . . . . . . 1 . . . . . formatsys_low 2 | . . . . . . . . . . . . . . 2 formatsys_high 6 | . . . . . . . . . . . . 2 1 3 Relay Couplers Released 19 | . . . . . . . . 4 . 7 . . 8 . Machine Destruction 19 | . . . . . . . . 4 . 7 . . 8 . Attached 11 | . . . . . . . . . 1 . . 2 8 . Fabnet Peak Effective % . | . . . . . . . . . . . . . . . Robots Rewired 8 | . . . . . . 6 . 2 . . . . . . Allies Hacked . | . . . . . . . . . . . . . . . Hacks Repelled . | . . . . . . . . . . . . . . . Allies | -11 -10 -10 -10 -9 -8 -8 -7 -7 -6 -6 -6 -5 -5 -5 -------- Run | Yrd Mat Min Exi Min Mat Gar Fac Gar Fac Gar Fac Fac Gar Fac Total Allies 22 | . . 2 . 4 . 6 . 2 . . . 2 1 5 Largest Group 6 | . . 2 2 4 2 6 . 2 2 1 . 2 1 4 Highest-Rated Group 110 | . . 42 42 71 47 96 . 72 72 32 . 90 49 110 Highest-Rated Ally 49 | . . 31 31 31 31 16 . 40 40 32 . 49 49 29 Initial Warlord ECA Mod 4 | . . . . . . . 2 2 . . . . . . Total Orders 5 | . . . . . . . . . . 1 . 4 . . EXPLORE 4 | . . . . . . . . . . 1 . 3 . . RETURN 1 | . . . . . . . . . . . . 1 . . Ally Attacks 148 | . . . . 34 7 58 . . 4 4 . 7 1 33 Total Damage 2162 | . . . . 408 89 629 . . 186 159 . 161 50 480 Kills 29 | . . . . 8 1 8 . . 2 1 . 2 . 7 Allies Corrupted . | . . . . . . . . . . . . . . . Allies Melted . | . . . . . . . . . . . . . . . Intel | -11 -10 -10 -10 -9 -8 -8 -7 -7 -6 -6 -6 -5 -5 -5 ------- Run | Yrd Mat Min Exi Min Mat Gar Fac Gar Fac Gar Fac Fac Gar Fac Active Infowar (turns) 6736 | 29 828 1337 452 116 1362 921 400 201 79 . 192 819 . . Traps 3974 | . . . . . 1362 921 400 201 79 . 192 819 . . Seismic 2762 | 29 828 1337 452 116 . . . . . . . . . . Robot Analysis Total 1 | . 1 . . . . . . . . . . . . . Derelict Logs Recovered 2 | . . 1 . 1 . . . . . . . . . . Drone Launches 4 | . . . . . . . . . . 1 . 3 . . Drone Recoveries 2 | . . . . . . . . . . 1 . 1 . . Exploration | -11 -10 -10 -10 -9 -8 -8 -7 -7 -6 -6 -6 -5 -5 -5 ------------- Run | Yrd Mat Min Exi Min Mat Gar Fac Gar Fac Gar Fac Fac Gar Fac Turns Passed 12218 | 117 1184 1338 452 998 1562 921 400 913 456 874 309 1045 979 670 Spaces Moved 9102 | 53 557 684 237 493 977 552 196 452 529 773 510 1457 796 836 Core 50 | 4 . . . . . . . 11 . 3 . . 32 . Treads 137 | 49 82 . . . . . . 6 . . . . . . Legs 4070 | . 475 684 237 493 977 552 196 435 21 . . . . . Wheels 172 | . . . . . . . . . 168 4 . . . . Hover 4673 | . . . . . . . . . 340 766 510 1457 764 836 Flight . | . . . . . . . . . . . . . . . Fastest Speed 42 | 50 120 190 190 190 120 125 125 120 44 44 44 42 42 58 Average Speed 104 | 151 181 190 190 190 133 125 125 158 69 48 44 44 68 67 Slowest Speed 550 | 160 190 190 190 190 330 196 127 400 210 550 96 96 400 98 Overloaded Moves . | . . . . . . . . . . . . . . . Propulsion Burnouts . | . . . . . . . . . . . . . . . Robots Hopped . | . . . . . . . . . . . . . . . Potential Cave-ins 6 | . . . . . . . . 6 . . . . . . Cave-ins Triggered . | . . . . . . . . . . . . . . . Exploration Rate (%) 48 | 4 93 98 41 86 80 69 4 52 10 60 9 33 64 26 Regions Visited 14 Branch Regions 3 Pre-discovered Areas 1 | . . . . 1 . . . . . . . . . . Known Exits Taken 4 | . . . . . 1 . 1 . 1 . . 1 . . Unknown Exits Taken 6 | 1 1 1 1 1 . . . . . . 1 . . . Scrap Searched 4 | . . 2 . 2 . . . . . . . . . . Spaces Dug 20 | . . . . 6 . . 7 5 . . 1 1 . . Terrain Destroyed 443 | . . 39 . 43 112 79 7 67 . . 1 68 21 6 Melee 9 | . . . . . . . 7 . . . 1 1 . . Projectile 17 | . . . . . 8 1 . . . . . . 2 6 AOE 417 | . . 39 . 43 104 78 . 67 . . . 67 19 . Terrain Rammed . | . . . . . . . . . . . . . . . Walls Destroyed . | . . . . . . . . . . . . . . . Machines Disabled . | . . . . . . . . . . . . . . . Actions | -11 -10 -10 -10 -9 -8 -8 -7 -7 -6 -6 -6 -5 -5 -5 --------- Run | Yrd Mat Min Exi Min Mat Gar Fac Gar Fac Gar Fac Fac Gar Fac Total 11098 | 75 658 715 240 527 1144 704 322 558 602 1170 574 1800 1105 904 Wait 909 | . 30 11 . . 11 34 106 11 30 256 30 248 129 13 Move 9087 | 52 556 683 236 492 977 549 195 451 528 772 509 1456 795 836 Hop . | . . . . . . . . . . . . . . . Pick Up 122 | 9 13 4 1 5 31 3 1 5 8 9 4 15 7 7 Fast Attach 63 | 7 1 . . . 4 4 . 9 10 3 . 3 19 3 Attach 44 | . 1 . . . 10 . 2 7 4 3 . 7 7 3 Detach 8 | . . . . . . . . . 2 . . 1 2 3 Swap 112 | . 9 6 . 5 16 11 6 12 2 14 6 16 7 2 Drop 92 | 1 10 4 1 5 26 6 . . 9 7 4 12 4 3 Fire 335 | 6 38 7 . 20 69 35 . 38 1 39 5 16 36 25 Melee 111 | . . . . . . 4 12 13 8 15 3 17 30 9 Ram . | . . . . . . . . . . . . . . . Kick 2 | . . . . . . . . 2 . . . . . . Crush . | . . . . . . . . . . . . . . . Escape Stasis 141 | . . . . . . . . . . 52 13 8 68 . Rewire 72 | . . . 2 . . 58 . 10 . . . 1 1 . Trap . | . . . . . . . . . . . . . . . Miscellaneous . | . . . . . . . . . . . . . . . Route ------- -11/Scrapyard -10/Materials (discovered 4 exits: [*Mat x3] / *Min) -10/Mines (discovered 3 exits: [*Mat x2] / *Exi) -10/Exiles -9/Mines -8/Materials (discovered 5 exits: *Fac x3 / [*Sto] / Gar) -8/Garrison (discovered 3 exits: *Fac x3) -7/Factory -7/Garrison -6/Factory -6/Garrison (discovered 2 exits: *Fac x2) -6/Factory -5/Factory (discovered 4 exits: [*Fac x2] / [*Upp] / Gar) -5/Garrison -5/Factory (discovered 1 exit: [*Upp]) History --------- Turn | Location | Event 13 | -11/Scrapyard | Discovered new exit (range 15) 118 | -11/Scrapyard | Entered Materials 265 | -10/Materials | Discovered new exit (range 15) 335 | -10/Materials | Build established: Mutant 549 | -10/Materials | Discovered new exit (range 9) 618 | -10/Materials | Derelicts attacked the area 724 | -10/Materials | Discovered new exit (range 10) 975 | -10/Materials | Core integrity fell below 50% 1045 | -10/Materials | Discovered new exit (range 15) 1302 | -10/Materials | Entered Mines 1306 | -10/Mines | Met a Derelict bent on vengeance 1441 | -10/Mines | Found a Scrap Suit stashed away for nefarious purposes 1675 | -10/Mines | Assembled infested the area 2002 | -10/Mines | Discovered new exit (range 7) 2050 | -10/Mines | Found the Drone Emporium 2064 | -10/Mines | Found Prototype Device 2065 | -10/Mines | Identified Sensor Drone Bay 2353 | -10/Mines | Build established: Scavenger-Mutant 2355 | -10/Mines | Found a hidden stash of uninstalled traps 2457 | -10/Mines | Learned Materials trap positions 2498 | -10/Mines | Discovered new exit (range 12) 2628 | -10/Mines | Deemed a non-threat by the Exiles lab entrance 2630 | -10/Mines | Discovered new exit (range 5) 2640 | -10/Mines | Entered Exiles 2640 | -10/Exiles | Accompanied by 2 allies 2670 | -10/Exiles | Led the pair of lost Derelicts to a safe place 2686 | -10/Exiles | Met 8R-AWN 2715 | -10/Exiles | Met EX-HEX 2772 | -10/Exiles | Met EX-BIN 2794 | -10/Exiles | Aligned with FarCom system 2796 | -10/Exiles | Given EX-Vault access code 2840 | -10/Exiles | Opened EX-Vault 2852 | -10/Exiles | Found Trap Reconfigurator 2893 | -10/Exiles | Warned to stay clear of 0b10 Research branches 3064 | -10/Exiles | Discovered new exit (range 14) 3092 | -10/Exiles | Left Exiles lab with Trap Reconfigurator 3092 | -10/Exiles | Entered Mines 3148 | -9/Mines | Assisted by bots powering up and referring to "LRC-V3" 3256 | -9/Mines | Met a Derelict testing a Signal Generator 3307 | -9/Mines | Learned location of 1 exit from Lower Caves 3437 | -9/Mines | Learned location of Storage (-8) 3514 | -9/Mines | Build established: Mutant 4045 | -9/Mines | Discovered new exit (range 8) 4090 | -9/Mines | Entered Materials 4090 | -8/Materials | Accompanied by 2 allies 4090 | -8/Materials | Evolved 4 slots: Propulsion x2, Utility x2 4091 | -8/Materials | Loaded intel: 13 trap records 4132 | -8/Materials | Garrison activated, responded to threat 4231 | -8/Materials | Lost 7 parts (1p4n1u1w) 4417 | -8/Materials | Met 7R-MNS 4444 | -8/Materials | Discovered new exit (range 15) 4738 | -8/Materials | Discovered new exit (range 16) 5169 | -8/Materials | Discovered new exit (range 10) 5188 | -8/Materials | Discovered new exit (range 5) 5528 | -8/Materials | Repaired Broken Imp. VTOL Module? 5652 | -8/Materials | Identified exit to Garrison 5652 | -8/Materials | Entered Garrison 5874 | -8/Garrison | Triggered checkpoint 5886 | -8/Garrison | Triggered checkpoint 6024 | -8/Garrison | Triggered checkpoint 6110 | -8/Garrison | Triggered checkpoint 6116 | -8/Garrison | Build established: Commander-Mutant 6158 | -8/Garrison | Discovered new exit (range 15) 6180 | -8/Garrison | Attempted to access garrison exit controls, blocked by remote lockdown 6211 | -8/Garrison | Discovered new exit (range 67) 6211 | -8/Garrison | Discovered new exit (range 11) 6211 | -8/Garrison | Discovered new exit (range 89) 6244 | -8/Garrison | Phase Generator disabled 6334 | -8/Garrison | Triggered checkpoint 6536 | -8/Garrison | Build established: Mutant 6573 | -8/Garrison | Entered Factory 6573 | -7/Factory | Evolved 2 slots: Utility x1, Weapon x1 6913 | -7/Factory | Identified exit to Garrison 6973 | -7/Factory | Entered Garrison 7099 | -7/Garrison | Triggered checkpoint 7199 | -7/Garrison | Triggered checkpoint 7246 | -7/Garrison | Installed Relay Interface Framework 7285 | -7/Garrison | Phase Generator disabled 7387 | -7/Garrison | Lost 4 parts (1p1n1u1w) 7434 | -7/Garrison | Core integrity fell below 50% 7459 | -7/Garrison | Lost 11 parts (1p4n2u4w) 7462 | -7/Garrison | Core integrity fell below 20% 7678 | -7/Garrison | Garrison Relay disabled 7869 | -7/Garrison | Discovered new exit (range 10) 7886 | -7/Garrison | Entered Factory 7886 | -6/Factory | Accompanied by 2 allies 7886 | -6/Factory | Evolved 2 slots: Propulsion x1, Utility x1 7992 | -6/Factory | Build established: Bothacker-Mutant 8306 | -6/Factory | Identified exit to Garrison 8342 | -6/Factory | Entered Garrison 8342 | -6/Garrison | Accompanied by 1 ally 8386 | -6/Garrison | Triggered checkpoint 8549 | -6/Garrison | Garrison Relay disabled 8800 | -6/Garrison | Triggered checkpoint 8800 | -6/Garrison | Triggered checkpoint 8892 | -6/Garrison | Lost 5 parts (1p1n1u2w) 9023 | -6/Garrison | Discovered new exit (range 10) 9062 | -6/Garrison | Triggered checkpoint 9105 | -6/Garrison | Garrison Relay disabled 9204 | -6/Garrison | Discovered new exit (range 13) 9209 | -6/Garrison | Expanded RIF knowledge: Robot Detection 9216 | -6/Garrison | Entered Factory 9305 | -6/Factory | Discovered new exit (range 7) 9525 | -6/Factory | Entered another Factory area 9525 | -5/Factory | Evolved 2 slots: Utility x2 9741 | -5/Factory | Discovered new exit (range 13) 9915 | -5/Factory | Fabricated Imp. Gravmag System? 10045 | -5/Factory | Repaired Imp. Gravmag System 10061 | -5/Factory | Discovered new exit (range 26) 10369 | -5/Factory | Discovered new exit (range 12) 10380 | -5/Factory | Destroyed 8 combat bots 10388 | -5/Factory | Lost 3 parts (1p1u1w) 10562 | -5/Factory | Identified exit to Garrison 10570 | -5/Factory | Entered Garrison 10580 | -5/Garrison | Garrison Relay disabled 10637 | -5/Garrison | Triggered checkpoint 10840 | -5/Garrison | Spotted B-75 Beast 10877 | -5/Garrison | Destroyed B-75 Beast 10926 | -5/Garrison | Core integrity fell below 50% 10948 | -5/Garrison | Lost 20 parts (2p5n6u7w) 11222 | -5/Garrison | Triggered checkpoint 11260 | -5/Garrison | Garrison Relay disabled 11282 | -5/Garrison | Core integrity fell below 20% 11340 | -5/Garrison | Discovered new exit (range 5) 11416 | -5/Garrison | Triggered checkpoint 11476 | -5/Garrison | Expanded RIF knowledge: Watcher Feeds 11549 | -5/Garrison | Entered Factory 11740 | -5/Factory | Discovered new exit (range 35) 12219 | -5/Factory | Destroyed by P-70 Sage with High-powered Shock Rifle Last Messages --------------- 12090_ Acquired Adv. Trap Extractor. 12092_ A-15 Conveyor calls for reinforcements. 12092_ ALERT: Hostile activity reported, dispatching reinforcements to area. 12097_ System corrupted: Component data lost. 12098_ A-15 Conveyor Imp. Ion Engine severed. 12107_ A-15 Conveyor destroyed. 12134_ Acquired Lyr. Light Armor Plating. 12142_ Acquired Unknown Device. 12146_ POE 9EPELX%YN6SUFEZB0R 12168_ TF Node disabled. 12168_ Imp. Sensor Array tumbles out of TF Node. 12168_ Imp. Signal Interpreter tumbles out of TF Node. 12171_ Acquired Imp. Signal Interpreter. 12174_ Acquired Imp. Sensor Array. 12184_ System corrupted: Heat flow error (+293). 12213_ Linear Accelerator destroyed. 12216_ Imp. Gravmag System destroyed. [Achievement: Just Browsing] Map ----- +----------------------------------------------------+ | | | | | | | | | | | | | | | | | | | | | | | | | | | | | | | | | | | | | | | | | | | | | ?????????????????#########???????????????????????? | | ?????????????????#! =#????????????#######???? | | ?????????????????# """ #????????????# #???? | | ?????????????????# """ @############## #???? | | ?????????????????# """ p #???? | | ?????????????????#! #p############ #???? | | ?????????????????# """ ""# #??????????# * #???? | | ?????????????????# """ Y"# ##################???? | | ?????????????????# """ ""# # ! ! #??????????? | | ?????????????????#! # # #??????????? | | ???????????????????######## + #??????????? | | ??????????????????????????# # #??????????? | | ###+####################### # """ """ #??????????? | | + """ """ #??????????? | | # """ """ #??????????? | | # #??????????? | | ###########??????????? | | #?????????????? | | #?????????????? | | """" """" """" !! #?????????????? | | """" """" """"=!!######+###### #?????????????? | | """" """" """"!!%#??? ????? ????????????? | | """" """" """"%!!#?# !=! ! ????? #??????????? | | """" """" """" !!#?# !=! #???????????????? | | """" """" """ *#?# !!! ! #???????????????? | | #############???????????????? | | ???????????????? | | ####??????????????????????? | +----------------------------------------------------+ Best States ------------- Heat Dissipation 51 Energy Generation 19 Energy Capacity 315 Matter Stores 300 Matter Capacity 300 Sight Range 16 Terrain Scan Density 10 Corruption Containment 8 Armor Coverage 450 Propulsion Shielding 33 Evasion (%) 56 Recoil Reduction 2 Offensive Hacking 10 Defensive Hacking 10 Relay Coupler Types 7 Relay Coupler Value 150 Item Schematics ----------------- Mni. Grenade Launcher | -8/Materials | Scanalyzed Med. Armor Plating | -8/Materials | Scanalyzed Gauss Cannon | -8/Materials | Scanalyzed Imp. VTOL Module | -8/Materials | Scanalyzed Imp. Gravmag System | -6/Factory | Scanalyzed Imp. Light Armor Plating | -5/Factory | Scanalyzed Robot Schematics ------------------ None Fabricated ------------ Imp. Gravmag System | x2 | -5/Factory Repaired ---------- Imp. VTOL Module | 99% | -8/Materials | Broken Imp. Gravmag System | 34% | -5/Factory Alien Tech Used ----------------- None Achievements -------------- Assimilation Complete Just Browsing Just What I Needed Challenges ------------ None Game ------ Seed TractorPoweredBallwheel Manual? 0 Play Time 02:23:11 Cumulative 26.5 hours Start 2025.06.14 @ 17:17:27 End 2025.06.15 @ 11:52:24 Sessions 3 Manual Loads 0 Difficulty Rogue Special Mode None Game No. 26 Rogue 26 Adventurer 0 Explorer 0 Win Type - Total 0 Types 0/0/0/0/0/0/0/0/0/0 Lore% 20 Gallery% 25 Achievement% 27 Wizard Run 0 Options --------- Layout 1 ASCII 0 Keyboard 0 Movement Mouse Keybinds 0 Fullscreen 1 Font 24/Smallcaps Map View 50x40 Zoom Use 0% Tactical HUD 1 Map Filters NONE Filters NONE Steam 1 RUN: 407487f8-45cc-413b-a74e-9eb0dd63f41e